Cogmind - Beta 16 @@@ ROGUE MODE // 2025.11.18 @ 10:45:53 // Winter2019/RPGLIKE Player: Jaegerpls Result: Destroyed by X-72 Disruptor with Improved Arc Projector Performance ------------- Evolutions (5) 2500 Regions Visited (7) 1400 Robots Destroyed (80) 400 Value Destroyed (2876) 2876 Prototype IDs (29) 580 Alien Tech Used (0) 0 Bonus (1394) 1394 TOTAL SCORE: 9150 Bonus ------- Follower Combat Kills 94 Entered DSFs 500 Registered with UFD 300 Met Optimus in HQ 500 Cogmind --------- Core Integrity 0/850 Matter 101/300 Energy 240/240 System Corruption 7% Temperature Cool (0) Movement Walking (125) Location -5/Factory Parts ------- > --- POWER (2) -------- Light Neutrino Core Light Neutrino Core > --- PROPULSION (3) --- Thunder Leg Cargo Legs > --- UTILITY (6+2) ---- Improved Signal Interpreter Improved Terrain Scanner Advanced Targeting Computer (+) Advanced Recoil Stabilizer Improved Kinecellerator Hacking Suite System Shield A0-MCA's Component Scanner (+) > --- WEAPON (3) ------- Magnetic Acceleration Cannon Magnetic Acceleration Cannon Magnetic Acceleration Cannon (fused) > --- INVENTORY (1) ---- Advanced Cooling System Peak State ------------ > --- POWER ------------ Light Neutrino Core Light Neutrino Core > --- PROPULSION ------- Thunder Leg Cargo Legs > --- UTILITY ---------- Improved Signal Interpreter Improved Terrain Scanner Advanced Targeting Computer Advanced Recoil Stabilizer Improved Kinecellerator Hacking Suite System Shield A0-MCA's Component Scanner > --- WEAPON ----------- Magnetic Acceleration Cannon Magnetic Acceleration Cannon Magnetic Acceleration Cannon > --- INVENTORY -------- Advanced Cooling System [Rating: 87] Favorites ----------- Power Light Nuclear Core Engine Deuterium Engine Power Core Light Nuclear Core Propulsion Cargo Legs Leg Cargo Legs Wheel Wheel Hover Unit Hover Unit Utility Improved Terrain Scanner Device Improved Terrain Scanner Processor Improved Signal Interpreter Hackware Hacking Suite Protection Scrap Shield Weapon Battle Cannon Energy Gun Medium Laser Energy Cannon Heavy Ion Cannon Ballistic Gun Barrage Gun Ballistic Cannon Battle Cannon Slashing Weapon Mining Claw Build | -11 -10 -10 -8 -8 -6 -6 -5 ------- Run | Yrd Mat Sub Rec Scr Fac DSF Fac Slots Evolved 10 | 4 1 1 1 1 1 . 1 Power 1 | . . . . 1 . . . Propulsion 2 | 1 1 . . . . . . Utility 5 | 2 . 1 1 . 1 . . Weapon 2 | 1 . . . . . . 1 Parts Attached 53 | 6 13 5 5 12 1 5 6 Power 9 | 1 2 . 2 1 . 1 2 Engine 4 | 1 1 . 1 1 . . . Core 5 | . 1 . 1 . . 1 2 Reactor . | . . . . . . . . Propulsion 10 | 2 3 1 . 3 . . 1 Treads . | . . . . . . . . Leg 5 | . . 1 . 3 . . 1 Wheel 2 | 2 . . . . . . . Hover 3 | . 3 . . . . . . Flight . | . . . . . . . . Utility 18 | 1 3 1 3 5 1 2 2 Device 10 | 1 3 . 1 1 1 1 2 Storage . | . . . . . . . . Processor 4 | . . . 1 2 . 1 . Hackware 3 | . . . 1 2 . . . Protection 1 | . . 1 . . . . . Artifact . | . . . . . . . . Weapon 16 | 2 5 3 . 3 . 2 1 Energy Gun 2 | 2 . . . . . . . Energy Cannon 3 | . 1 . . 2 . . . Ballistic Gun 2 | . 1 1 . . . . . Ballistic Cannon 8 | . 2 2 . 1 . 2 1 Launcher . | . . . . . . . . Special Weapon . | . . . . . . . . Impact Weapon . | . . . . . . . . Slashing Weapon 1 | . 1 . . . . . . Piercing Weapon . | . . . . . . . . Special Melee Weapon . | . . . . . . . . Unidentified Prototypes . | . . . . . . . . Parts Lost 1 | . . 1 . . . . . Power . | . . . . . . . . Propulsion 1 | . . 1 . . . . . Utility . | . . . . . . . . Weapon . | . . . . . . . . Highest Loss Streak 1 | . . 1 . . . . . To Critical Strikes . | . . . . . . . . Average Backups . | . . 1 . . . . . Power . | . . . . . . . . Propulsion . | . . . . . . . . Utility . | . . 1 . . . . . Weapon . | . . . . . . . . Tool/Special . | . . . . . . . . Unused Backups 1 | . . . . . . 1 . Power . | . . . . . . . . Propulsion . | . . . . . . . . Utility . | . . . . . . . . Weapon 1 | . . . . . . 1 . Tool/Special . | . . . . . . . . Average Slot Usage (%) 76 | . 91 68 60 79 85 86 92 Engine 2 | . 3 . 1 7 6 6 4 Core 6 | . 8 8 6 . . 2 7 Leg 7 | . . 5 7 11 13 13 12 Hover 4 | . 20 7 . . . . . Device 19 | . 27 22 15 14 19 17 18 Processor 7 | . . . 1 19 20 20 18 Hackware 5 | . . . 5 8 13 13 12 Protection 3 | . . 4 7 1 . . . Energy Cannon 4 | . 7 4 . 10 13 8 . Ballistic Gun 3 | . 1 5 7 . . . . Ballistic Cannon 8 | . 11 8 7 3 . 4 16 Peak Build Rating 87 | 8 16 34 37 56 59 69 87 Average Rating 42 | 4 12 28 36 48 58 63 80 On Entrance 34 | . 8 16 34 36 56 59 69 Avg Prop Armor Cover (%) . | . . . . . . . . Naked Turns . | . . . . . . . . Heaviest Build 47 | 9 14 31 36 41 29 34 47 Greatest Support 83 | 20 29 66 60 78 78 78 83 Greatest Overweight (x) . | . . . . . . . . Average Overweight (x) . | . . . . . . . . Largest Inventory Capacity 1 | 1 1 1 1 1 1 1 1 Average Capacity 1 | 1 1 1 1 1 1 1 1 Most Carried 1 | . 1 1 1 1 1 1 1 Average Carried . | . . 1 . . . . . Final Capacity 1 | 1 1 1 1 1 1 1 1 Final Carried 1 | . 1 1 1 1 . 1 1 Class Distribution -------------------- 38% | Scavenger-Skirmisher 29% | Hacker-Skirmisher 14% | Scavenger-Mutant 9% | Skirmisher 3% | Mutant Dominant Class ---------------- Scavenger-Mutant | -10/Materials Scavenger-Skirmisher | -10/Subcaves Scavenger-Skirmisher | -8/Recycling Skirmisher | -8/Scraptown Hacker-Skirmisher | -6/Factory Hacker-Skirmisher | -6/DSF Hacker-Skirmisher | -5/Factory Resources | -11 -10 -10 -8 -8 -6 -6 -5 ----------- Run | Yrd Mat Sub Rec Scr Fac DSF Fac Matter Collected 2887 | 260 429 829 363 106 . 219 681 Remotely . | . . . . . . . . Salvage Created 2031 | 165 624 344 426 . . 87 385 Parts 174 | 12 51 45 15 . . 20 31 Haulers Intercepted 4 | . 2 . 1 . . . 1 Recyclers Shooed . | . . . . . . . . Parts Field Recycled . | . . . . . . . . Retrieved Matter . | . . . . . . . . Parts Self-Destructed 29 | . . 29 . . . . . Prevented . | . . . . . . . . Parts Restored . | . . . . . . . . Kills | -11 -10 -10 -8 -8 -6 -6 -5 ------- Run | Yrd Mat Sub Rec Scr Fac DSF Fac Combat Hostiles Destroyed 59 | . 14 19 3 . . 8 15 Guns 7 | . 1 4 2 . . . . Cannons 51 | . 12 15 1 . . 8 15 Classes Destroyed 16 | 2 5 3 2 . . 3 1 Builder 1 | . . . 1 . . . . Tunneler 5 | 5 . . . . . . . Hauler 4 | . 2 . 1 . . . 1 Recycler 2 | 1 1 . . . . . . Operator 1 | . 1 . . . . . . Turret 2 | . . 2 . . . . . Watcher 6 | . 3 . . . . . 3 Swarmer 10 | . 3 6 . . . . 1 Grunt 15 | . 11 . . . . 3 1 Brawler 1 | . . . 1 . . . . Duelist 1 | . . . . . . 1 . Sentry 6 | . . 1 2 . . . 3 Hunter 5 | . . . . . . 3 2 Programmer 8 | . . . . . . . 8 Heavy 1 | . . . . . . 1 . Subdweller 12 | . . 12 . . . . . Best Kill Streak 4 | 3 4 4 1 . . 4 3 Combat Bots Only 4 | . 3 3 1 . . 4 3 Max Kills in Single Turn 2 | 1 1 1 1 . . 1 2 Gunslinging . | . . . . . . . . Exploded . | . . . . . . . . Melee . | . . . . . . . . Uniques/NPCs Destroyed . | . . . . . . . . Combat | -11 -10 -10 -8 -8 -6 -6 -5 -------- Run | Yrd Mat Sub Rec Scr Fac DSF Fac Hostile Shots Fired 396 | . 49 115 8 . . 97 127 Missed 137 | . 15 40 1 . . 32 49 Hits 259 | . 34 75 7 . . 65 78 Projectile 259 | . 34 75 7 . . 65 78 AOE 2 | . . 2 . . . . . Critical Strikes 4 | . . 1 . . . 1 2 Part Disruptions 2 | . . . . . . . 2 Damage Taken 4519 | . 646 1325 81 . . 909 1558 Core 3459 | . 518 880 43 . . 756 1262 Absorbed by Shields 217 | . . . 16 . . 201 . Redirected to Core 2910 | . 438 831 43 . . 540 1058 Regen/Repaired (Parts) 22 | . 22 . . . . . . Core Remaining (%) 87 | 100 . . . 93 . 69 . Volleys Fired 292 | 18 53 121 22 . . 33 45 Largest 3 | 2 2 2 2 . . 2 3 Hottest 140 | 90 90 93 61 . . 140 132 Shots Fired 608 | 36 106 234 44 . . 66 122 Gun 138 | 36 10 70 22 . . . . Cannon 470 | . 96 164 22 . . 66 122 Launcher . | . . . . . . . . Special . | . . . . . . . . Kinetic 438 | . 67 179 44 . . 26 122 Thermal 170 | 36 39 55 . . . 40 . Explosive . | . . . . . . . . Electromagnetic . | . . . . . . . . Robot Hit Streak 26 | 6 8 25 23 . . 26 14 Robot Miss Streak 7 | 3 7 5 1 . . 2 4 Penetration Max . | . . . . . . . . Secondary Targets . | . . . . . . . . Shots Hit Robots 361 | 20 50 120 35 . . 55 81 Core Hits 119 | 7 24 34 13 . . 16 25 Critical Kills 1 | . 1 . . . . . . Critical Parts Destroyed . | . . . . . . . . Critical Strikes 20 | . 4 5 1 . . 2 8 Meltdown 1 | . 1 . . . . . . Destroy 1 | . . 1 . . . . . Blast 18 | . 3 4 1 . . 2 8 Melee Attacks 9 | . 9 . . . . . . Impact . | . . . . . . . . Slashing 9 | . 9 . . . . . . Piercing . | . . . . . . . . Sneak Attacks . | . . . . . . . . Combat Hostiles . | . . . . . . . . Follow-up Attacks . | . . . . . . . . Damage Inflicted 8973 | 232 899 2267 733 . . 1798 3044 Guns 1307 | 232 100 617 358 . . . . Cannons 7666 | . 799 1650 375 . . 1798 3044 Explosions . | . . . . . . . . Melee . | . . . . . . . . Ramming . | . . . . . . . . Kinetic 6698 | . 548 1685 733 . . 688 3044 Thermal 2275 | 232 351 582 . . . 1110 . Explosive . | . . . . . . . . Electromagnetic . | . . . . . . . . Impact . | . . . . . . . . Slashing . | . . . . . . . . Piercing . | . . . . . . . . Highest Corruption 7 | . 1 1 1 . . . 7 Average Corruption 1 | . 1 1 1 . . . 4 Corruption Purged . | . . . . . . . . Corruption Blocked . | . . . . . . . . Effects 85 | . 2 42 8 . . . 33 Message Errors 19 | . . 8 2 . . . 9 Matter Fused 25 | . 2 13 1 . . . 9 Heat Flow Errors 6 | . . 4 1 . . . 1 Energy Discharges 10 | . . 4 2 . . . 4 Parts Fused 1 | . . . . . . . 1 Data Loss (minor) 13 | . . 7 1 . . . 5 Data Loss (major) 5 | . . 3 1 . . . 1 Misfires 2 | . . 1 . . . . 1 Weapon Failures 4 | . . 2 . . . . 2 Overload Shots . | . . . . . . . . Overflow Damage 311 | . . 29 23 . . 73 186 Projectiles 311 | . . 29 23 . . 73 186 Explosions . | . . . . . . . . Melee . | . . . . . . . . Knockbacks 51 | . 9 15 2 . . 7 18 Impact . | . . . . . . . . Kinetic 47 | . 9 15 2 . . 7 14 Secondary 4 | . . . . . . . 4 Self-Inflicted Damage . | . . . . . . . . Shots . | . . . . . . . . Rammed . | . . . . . . . . Targets Rammed . | . . . . . . . . Kicked . | . . . . . . . . Crushed . | . . . . . . . . Highest Temperature 230 | . 45 210 107 . . 230 166 Average Temperature 57 | . 20 99 63 . . 105 89 Received Heat Transfer 682 | . 171 270 23 . . 155 63 Siege Activations . | . . . . . . . . Martial Activations . | . . . . . . . . Shielding Activations . | . . . . . . . . Robots Disrupted . | . . . . . . . . Combat Hostiles . | . . . . . . . . Robots Corrupted . | . . . . . . . . Combat Hostiles . | . . . . . . . . Parts Fried . | . . . . . . . . Impact Corruptions . | . . . . . . . . Robots Melted 2 | . 1 . . . . 1 . Combat Hostiles 1 | . 1 . . . . . . Parts Melted 5 | . 3 1 1 . . . . Heat Transferred 3938 | 620 765 1221 . . . 1332 . Parts Sabotaged . | . . . . . . . . Parts Stolen . | . . . . . . . . Parts Stripped . | . . . . . . . . Power Chain Reactions . | . . . . . . . . Alert | -11 -10 -10 -8 -8 -6 -6 -5 ------- Run | Yrd Mat Sub Rec Scr Fac DSF Fac Maximum Alert Level 1 | . . . . . . . 1 Low Security (%) 92 | 100 100 . 100 . 100 100 80 Level 1 7 | . . . . . . . 19 Level 2 . | . . . . . . . . Level 3 . | . . . . . . . . Level 4 . | . . . . . . . . Level 5 . | . . . . . . . . High Security . | . . . . . . . . Max Security . | . . . . . . . . Sterilizations 1 | . . . . . . 1 . Peak Influence 265 | 10 179 . 81 . 10 185 265 Initial 96 | . . . 81 . . . 96 Average 63 | 2 87 . 9 . . 80 97 Influence Increases 1711 | 30 459 240 160 . 10 195 617 Destroy 0b10 Robot/C 1040 | . 280 180 60 . . 160 360 Destroy 0b10 Robot/NC 135 | 30 35 . 45 . . 5 20 Destroy Leader 218 | . 80 . . . . 30 108 Allied During Kill 28 | . . . 12 . . . 16 Successful Hack 107 | . 44 . 42 . 10 . 11 Disable Machine 45 | . 15 . . . . . 30 Destroy Structure 78 | . 5 . 1 . . . 72 Lose Combat Pursuer 60 | . . 60 . . . . . Influence Decreases 1609 | 30 296 233 330 . 10 10 700 Entered New Map 257 | . . 79 89 . . . 89 Time Decay 1142 | 30 296 154 211 . 10 . 441 Lost Ally 30 | . . . . . . 10 20 Purge Threat 180 | . . . 30 . . . 150 Squads Dispatched 14 | . 3 . . . . 1 10 Investigation 3 | . 1 . . . . . 2 Extermination 4 | . . . . . . . 4 Reinforcement 4 | . 2 . . . . 1 1 Assault . | . . . . . . . . Garrison 3 | . . . . . . . 3 Intercept . | . . . . . . . . Searches Triggered . | . . . . . . . . Construction Impeded . | . . . . . . . . Haulers Reinforced . | . . . . . . . . Active Scanning Responses . | . . . . . . . . Cargo Convoy Interrupts . | . . . . . . . . Stealth | -11 -10 -10 -8 -8 -6 -6 -5 --------- Run | Yrd Mat Sub Rec Scr Fac DSF Fac Distress Signals . | . . . . . . . . Communications Jammed . | . . . . . . . . Distress Signals . | . . . . . . . . Times Spotted 83 | . 21 23 3 . . 9 27 Peak Tracking Total 8 | . 4 4 1 . . 4 8 Tactical Retreats 4 | . 1 3 . . . . . ECM-based Alert Blocks 1 | . 1 . . . . . . Traps | -11 -10 -10 -8 -8 -6 -6 -5 ------- Run | Yrd Mat Sub Rec Scr Fac DSF Fac Traps Triggered 1 | . . 1 . . . . . Indirectly . | . . . . . . . . Trap Hack Attempts . | . . . . . . . . Triggered . | . . . . . . . . Disarmed . | . . . . . . . . Reprogrammed . | . . . . . . . . Reused . | . . . . . . . . Traps Extracted . | . . . . . . . . Installed . | . . . . . . . . Triggered . | . . . . . . . . Machines | -11 -10 -10 -8 -8 -6 -6 -5 ---------- Run | Yrd Mat Sub Rec Scr Fac DSF Fac Machines Disabled 7 | . 2 3 . . . . 2 Max in Single Turn 1 | . 1 1 . . . . 1 Machines Repaired . | . . . . . . . . Machines Dismantled . | . . . . . . . . Machines Sabotaged . | . . . . . . . . Overloaded Fab Kills . | . . . . . . . . Hacking | -11 -10 -10 -8 -8 -6 -6 -5 --------- Run | Yrd Mat Sub Rec Scr Fac DSF Fac Machines Accessed 36 | . 8 2 11 8 3 . 4 Terminals 15 | . 6 . 6 . 1 . 2 Fabricators 1 | . . . . . . . 1 Repair Stations 1 | . 1 . . . . . . Recycling Units 6 | . 1 . 5 . . . . Scanalyzers 1 | . . . . . 1 . . Garrison Access 2 | . . . . . 1 . 1 Total Hacks 151 | . 27 14 37 47 7 . 19 Successful 125 | . 17 14 29 47 2 . 16 Failed 25 | . 10 . 8 . 4 . 3 Catastrophic . | . . . . . . . . Database Lockouts 1 | . . . . . 1 . . Manual 59 | . 23 . 22 . 2 . 12 Terminals 53 | . 18 . 21 . 2 . 12 Fabricators 3 | . . . . . . . 3 Repair Stations 5 | . 5 . . . . . . Recycling Units 20 | . 4 . 16 . . . . Scanalyzers 3 | . . . . . 3 . . Garrison Access 6 | . . . . . 2 . 4 Terminal Hacks 74 | . 3 14 7 47 1 . 2 Record 54 | . . 13 1 40 . . . Part Schematic 2 | . . . 2 . . . . Robot Analysis 10 | . 3 . 1 6 . . . Open DSF 1 | . . . . . 1 . . Machine Index 1 | . . . 1 . . . . Alert Level 2 | . . . 1 . . . 1 Unreport Threat 2 | . . . 1 . . . 1 Proto ID Catalog 2 | . . 1 . 1 . . . Fabricator Hacks 3 | . . . . . . . 3 Network Status 1 | . . . . . . . 1 Load Schematic 1 | . . . . . . . 1 Build 1 | . . . . . . . 1 Repair Station Hacks 2 | . 2 . . . . . . Scan Component 1 | . 1 . . . . . . Repair 1 | . 1 . . . . . . Recycling Unit Hacks 9 | . 2 . 7 . . . . Report Inventory 7 | . 1 . 6 . . . . Retrieve Matter 1 | . . . 1 . . . . Retrieve Components 1 | . 1 . . . . . . Scanalyzer 1 | . . . . . 1 . . Retrieve Study 1 | . . . . . 1 . . Garrison Access Hacks . | . . . . . . . . Unauthorized Hacks 34 | . 10 . 13 . . . 11 Terminals 23 | . 8 . 7 . . . 8 Track 1 | . . . . . . . 1 Assimilate 1 | . 1 . . . . . . Botnet 6 | . 2 . 2 . . . 2 Disrupt 2 | . . . . . . . 2 Operators 1 | . . . . . . . 1 Skim 12 | . 5 . 5 . . . 2 Fabricators . | . . . . . . . . Repair Stations 1 | . 1 . . . . . . Mechanics 1 | . 1 . . . . . . Recycling Units 7 | . 1 . 6 . . . . Reject 6 | . 1 . 5 . . . . Recyclers 1 | . . . 1 . . . . Scanalyzers . | . . . . . . . . Garrison Access 3 | . . . . . . . 3 Broadcast 1 | . . . . . . . 1 Reprogram 1 | . . . . . . . 1 Watchers 1 | . . . . . . . 1 Data Cores Recovered . | . . . . . . . . Used . | . . . . . . . . Hacking Detections 21 | . 8 . 8 . 2 . 3 Full Trace Events 2 | . 1 . . . . . 1 Feedback Events 1 | . 1 . . . . . . Corruption 1 | . 1 . . . . . . Feedback Blocked . | . . . . . . . . Robot Schematics Acquired . | . . . . . . . . Robots Built . | . . . . . . . . Authchips . | . . . . . . . . Time . | . . . . . . . . Total Robot Build Rating . | . . . . . . . . Part Schematics Acquired 2 | . . . 2 . . . . Parts Built . | . . . . . . . . Authchips . | . . . . . . . . Time 73 | . . . . . . . 73 Total Part Build Rating . | . . . . . . . . Part Studies Acquired 1 | . . . . . 1 . . Parts Repaired 1 | . 1 . . . . . . Time 19 | . 19 . . . . . . Parts Recycled . | . . . . . . . . Recycled Matter . | . . . . . . . . Retrieved Matter . | . . . . . . . . Retrieved Components 10 | . 10 . . . . . . Parts Scanalyzed . | . . . . . . . . Part Schematics Acquired . | . . . . . . . . Parts Damaged . | . . . . . . . . Bothacking | -11 -10 -10 -8 -8 -6 -6 -5 ------------ Run | Yrd Mat Sub Rec Scr Fac DSF Fac Used RIF Installer . | . . . . . . . . Robots Hacked . | . . . . . . . . Non-combat . | . . . . . . . . Combat . | . . . . . . . . Robot Hacks Applied . | . . . . . . . . Relay Couplers Released . | . . . . . . . . Fabnet Peak Effective % . | . . . . . . . . Robots Rewired 4 | . . . 4 . . . . Allies Hacked 1 | . . . . . . . 1 Hacks Repelled . | . . . . . . . . Allies | -11 -10 -10 -8 -8 -6 -6 -5 -------- Run | Yrd Mat Sub Rec Scr Fac DSF Fac Total Allies 6 | . . . 4 . . . 2 Largest Group 4 | . . . 4 2 2 2 2 Highest-Rated Group 82 | . . . 74 43 43 43 82 Highest-Rated Ally 41 | . . . 27 27 27 27 41 Total Orders 1 | . . . . . . 1 . AID 1 | . . . . . . 1 . Ally Attacks 20 | . . . 5 . . 3 12 Total Damage 572 | . . . 80 . . 46 446 Kills 4 | . . . 1 . . . 3 Allies Corrupted . | . . . . . . . . Allies Melted . | . . . . . . . . Intel | -11 -10 -10 -8 -8 -6 -6 -5 ------- Run | Yrd Mat Sub Rec Scr Fac DSF Fac Active Infowar (turns) 11297 | 8 754 4511 1447 1918 127 751 1781 Terrain 11297 | 8 754 4511 1447 1918 127 751 1781 ECM 119 | . 119 . . . . . . Robot Analysis Total 10 | . 3 . 1 6 . . . Derelict Logs Recovered 3 | . . 2 . 1 . . . Drone Launches . | . . . . . . . . Drone Recoveries . | . . . . . . . . Exploration | -11 -10 -10 -8 -8 -6 -6 -5 ------------- Run | Yrd Mat Sub Rec Scr Fac DSF Fac Turns Passed 11421 | 132 754 4511 1447 1918 127 751 1781 Spaces Moved 6202 | 87 637 2247 718 1345 85 259 824 Core 1 | 1 . . . . . . . Treads . | . . . . . . . . Legs 4871 | . . 1640 718 1345 85 259 824 Wheels 175 | 86 89 . . . . . . Hover 1155 | . 548 607 . . . . . Flight . | . . . . . . . . Fastest Speed 50 | 50 52 52 130 125 125 125 125 Average Speed 113 | 79 58 109 130 127 125 125 125 Slowest Speed 130 | 80 80 130 130 130 125 125 125 Overloaded Moves . | . . . . . . . . Propulsion Burnouts . | . . . . . . . . Robots Hopped . | . . . . . . . . Potential Cave-ins . | . . . . . . . . Cave-ins Triggered 1 | . 1 . . . . . . Exploration Rate (%) 60 | 5 92 93 99 85 3 87 16 Regions Visited 7 Branch Regions 3 Pre-discovered Areas 5 | . 1 2 2 . . . . Known Exits Taken 3 | . . . 1 1 1 . . Unknown Exits Taken 3 | 1 1 1 . . . . . Scrap Searched 10 | . . 7 . 3 . . . Spaces Dug 12 | . 3 2 . . . . 7 Terrain Destroyed 41 | . 3 4 . . . . 34 Melee 3 | . 3 . . . . . . Projectile 38 | . . 4 . . . . 34 AOE . | . . . . . . . . Terrain Rammed . | . . . . . . . . Walls Destroyed . | . . . . . . . . Machines Disabled . | . . . . . . . . Actions | -11 -10 -10 -8 -8 -6 -6 -5 --------- Run | Yrd Mat Sub Rec Scr Fac DSF Fac Total 10020 | 110 895 4065 1191 1551 106 621 1481 Wait 3074 | . 154 1642 215 183 21 289 570 Move 6195 | 86 636 2246 717 1344 84 258 824 Hop . | . . . . . . . . Pick Up 9 | . 4 . 2 1 . 2 . Fast Attach 40 | 6 11 6 1 10 . 3 3 Attach 7 | . 2 . 2 1 1 . 1 Detach 11 | . 2 . 1 4 . 2 2 Swap 9 | . 2 . 2 1 . 2 2 Drop 35 | . 10 7 3 7 . 5 3 Fire 292 | 18 53 121 22 . . 33 45 Melee 9 | . 9 . . . . . . Ram . | . . . . . . . . Kick . | . . . . . . . . Crush . | . . . . . . . . Escape Stasis . | . . . . . . . . Rewire 210 | . . . 209 . . . 1 Trap . | . . . . . . . . Miscellaneous 129 | . 12 43 17 . . 27 30 Route ------- -11/Scrapyard -10/Materials (discovered 6 exits: [*Mat x3] / [*Min x2] / *Sub) -10/Subcaves (discovered 3 exits: [*Mat x2] / *Rec) -8/Recycling (discovered 2 exits: *Fac / *Scr) -8/Scraptown (discovered 2 exits: *Fac x2) -6/Factory (discovered 4 exits: Low x2 / Ext / DSF) -6/DSF -5/Factory (discovered 1 exit: *Fac) History --------- Turn | Location | Event 1 | -11/Scrapyard | Upgraded with Propulsion slot (x1) 1 | -11/Scrapyard | Upgraded with Utility slot (x2) 1 | -11/Scrapyard | Upgraded with Weapon slot (x1) 14 | -11/Scrapyard | Discovered new exit (range 15) 133 | -11/Scrapyard | Entered Materials 223 | -10/Materials | Crushed by falling debris 279 | -10/Materials | Discovered new exit (range 11) 319 | -10/Materials | Build established: Mutant 381 | -10/Materials | Discovered new exit (range 10) 503 | -10/Materials | Discovered new exit (range 12) 515 | -10/Materials | Discovered new exit (range 15) 603 | -10/Materials | Discovered new exit (range 14) 666 | -10/Materials | Repaired Imp. Heat Sink 687 | -10/Materials | Build established: Scavenger-Mutant 693 | -10/Materials | Loaded intel: 1 repair station location 747 | -10/Materials | Reached level 2 753 | -10/Materials | Upgraded with Propulsion slot (x1) 755 | -10/Materials | Learned 2 Storage zone layouts 776 | -10/Materials | Core integrity fell below 50% 799 | -10/Materials | Discovered new exit (range 16) 807 | -10/Materials | Learned location of 2 exits from Materials 885 | -10/Materials | Learned location of Mines (-9) 887 | -10/Materials | Entered Subcaves 948 | -10/Subcaves | Discovered new exit (range 15) 1423 | -10/Subcaves | A swath of the cavern ceiling suddenly collapsed 1430 | -10/Subcaves | Discovered new exit (range 13) 1583 | -10/Subcaves | Disturbed a concealed Subdweller 1583 | -10/Subcaves | Disturbed a concealed Subdweller 1590 | -10/Subcaves | Core integrity fell below 20% 2020 | -10/Subcaves | Reached level 3 2034 | -10/Subcaves | Upgraded with Utility slot (x1) 2226 | -10/Subcaves | Visited 4L-MR0's lab 2240 | -10/Subcaves | Found Cargo Legs 2241 | -10/Subcaves | Attached Cargo Legs, gained temporary slots: Utility x2 2546 | -10/Subcaves | Build established: Scavenger-Skirmisher 2563 | -10/Subcaves | A swath of the cavern ceiling suddenly collapsed 2585 | -10/Subcaves | Discovered new exit (range 5) 3330 | -10/Subcaves | Learned Materials stockpile data 3333 | -10/Subcaves | Visited Clippyterm 3336 | -10/Subcaves | Learned location of Deep Caves (-7) 3336 | -10/Subcaves | Learned Research machine intel 3667 | -10/Subcaves | Shifting Twisted Machinery released Sub. Monowheel 3667 | -10/Subcaves | Shifting Twisted Machinery released Sub. Monowheel 4566 | -10/Subcaves | Shifting Twisted Machinery released Enh. Flamer 4620 | -10/Subcaves | Shifting Twisted Machinery released Sub. Beam Cannon 4962 | -10/Subcaves | Shifting Twisted Machinery released Mak. Light Armor Plating 5398 | -10/Subcaves | Entered Recycling 5399 | -8/Recycling | Met a Zionite searching for Scraptown 5400 | -8/Recycling | Reached level 4 5400 | -8/Recycling | Upgraded with Utility slot (x1) 5835 | -8/Recycling | Discovered new exit (range 16) 6716 | -8/Recycling | Learned location of Lower Caves (-6) 6809 | -8/Recycling | Learned location of Lower Caves (-7) 6814 | -8/Recycling | Scanned before Scraplab entrance 6833 | -8/Recycling | Entered Scraplab 6838 | -8/Recycling | Learned Factory emergency access door positions 6844 | -8/Recycling | Discovered new exit (range 2) 6844 | -8/Recycling | Identified exit to Scraptown 6845 | -8/Recycling | Entered Scraptown 6845 | -8/Scraptown | Accompanied by 2 allies 6845 | -8/Scraptown | System corruption cleaned by C-Scrubber 6906 | -8/Scraptown | Build established: Skirmisher 7060 | -8/Scraptown | Scanned Subdweller tech in exchange for log data 7063 | -8/Scraptown | Learned location of 1 exit from Factory 7082 | -8/Scraptown | Discovered new exit (range 9) 7190 | -8/Scraptown | Visited UFD Registry 7190 | -8/Scraptown | Registered with UFD as "Chainranger" 7240 | -8/Scraptown | Visited DA-N13 Charitable Foundation 7309 | -8/Scraptown | Delivered Scrap Shield to a Scientist 7424 | -8/Scraptown | Visited Science Guys 7523 | -8/Scraptown | Visited Analyses Database 7577 | -8/Scraptown | Visited A0-MCA Data Center 7585 | -8/Scraptown | Given an A- rating by A0-MCA 7587 | -8/Scraptown | Found A0-MCA's Component Scanner 7615 | -8/Scraptown | Visited Botcube Research 7636 | -8/Scraptown | Visited Abandonware Association 7653 | -8/Scraptown | Learned abandonware demo "HACKBUD.EXE" 7653 | -8/Scraptown | Learned abandonware demo "MELTYB.EXE" 7721 | -8/Scraptown | Found DCF Scrap (30 items) 8150 | -8/Scraptown | Visited Spacefarers 8224 | -8/Scraptown | Visited Red Mages 8272 | -8/Scraptown | Build established: Hacker-Skirmisher 8279 | -8/Scraptown | Visited The Evicted 8315 | -8/Scraptown | Visited Symbiants 8385 | -8/Scraptown | Visited Cave Peace 8417 | -8/Scraptown | Visited Comm Corps 8685 | -8/Scraptown | Met Optimus 8685 | -8/Scraptown | Reached level 5 8685 | -8/Scraptown | Accepted into 0bPrime 8693 | -8/Scraptown | Upgraded with Power slot (x1) 8747 | -8/Scraptown | Discovered new exit (range 11) 8759 | -8/Scraptown | Identified exit to Factory 8763 | -8/Scraptown | Entered Factory 8763 | -6/Factory | Accompanied by 2 allies 8764 | -6/Factory | Identified exit to Lower Caves 8765 | -6/Factory | Identified exit to Extension 8765 | -6/Factory | Reached level 6 8768 | -6/Factory | Upgraded with Utility slot (x1) 8773 | -6/Factory | Central database locked down 8889 | -6/Factory | Identified exit to DSF 8890 | -6/Factory | Entered DSF 8890 | -6/DSF | Accompanied by 2 allies 9109 | -6/DSF | Additional patrols routed to DSF 9133 | -6/DSF | Reached level 7 9434 | -6/DSF | Core integrity fell below 50% 9452 | -6/DSF | Sterilization system engaged 9472 | -6/DSF | Ambient heat levels rising (+10) 9487 | -6/DSF | Ambient heat levels rising (+10) 9502 | -6/DSF | Ambient heat levels rising (+10) 9517 | -6/DSF | Ambient heat levels rising (+10) 9532 | -6/DSF | Ambient heat levels rising (+10) 9547 | -6/DSF | Ambient heat levels rising (+10) 9556 | -6/DSF | Discovered new exit (range 14) 9562 | -6/DSF | Ambient heat levels rising (+10) 9573 | -6/DSF | Identified exit to Factory 9577 | -6/DSF | Ambient heat levels rising (+10) 9592 | -6/DSF | Ambient heat levels rising (+10) 9607 | -6/DSF | Ambient heat levels rising (+10) 9622 | -6/DSF | Ambient heat levels rising (+10) 9637 | -6/DSF | Ambient heat levels rising (+10) 9641 | -6/DSF | Entered Factory 9643 | -5/Factory | Reached level 8 10172 | -5/Factory | Garrison activated, responded to threat 10187 | -5/Factory | Reached level 9 10187 | -5/Factory | Upgraded with Weapon slot (x1) 10211 | -5/Factory | Core integrity fell below 50% 10796 | -5/Factory | Discovered new exit (range 14) 10869 | -5/Factory | Identified exit to Factory 11343 | -5/Factory | Reached level 10 11414 | -5/Factory | Core integrity fell below 20% 11422 | -5/Factory | Destroyed by X-72 Disruptor with Improved Arc Projector Last Messages --------------- 11353_ Upgraded: Sensor Range (+6) 11353_ Upgraded: KI Damage % (+5) 11356_ System corrupted: Matter fused (-10). 11382_ X-72 Disruptor knocked back. 11385_ Construction Platform disabled. 11389_ Door malfunctions. 11397_ ALERT: Cargo convoy en route, clear transfer corridor. 11401_ Component scanned: Hvy. Mass Driver [H-71 Marshal]. 11406_ Subcomponent Replicator disabled. 11406_ P-70 Sage resets P-70 Sage, system corruption cleaned. 11407_ Acquired 140 matter. 11408_ System corrupted: Matter fused (-9). 11410_ P-70 Sage Mic. Fission Core blasted off. 11413_ P-70 Sage destroyed. 11415_ U-05 Engineer builds a Wall. 11416_ System corrupted: Magnetic Acceleration Cannon jammed. 11418_ X-72 Disruptor knocked back. 11420_ R-10 Processor collects Tesla Rifle. 11420_ K-01 Serf cleans the Subcomponent Replicator. 11420_ U-05 Engineer builds a Wall. Map ----- +----------------------------------------------------+ | """ ###### #????????????????????????????????? | | ######/###?? ???????????????????????????? | | #+######## ##??????????????????????????????? | | # ######## """" #???????????????????????????????? | | # ######## """" +? ?????????????????????????????? | | # #####?## """" #???????????????????????????????? | | # ######## """" #? ????????????????????????????? | | # ######## """" ??? ????????????????????????????? | | # ######## """" #? ?????????????????????????? | | # ######## """" # ? ???????????????????????? | | # ######## ? ????? ???????????????????? | | #+######## """" # ? ? ? ????????????????? | | # """" + """ "?"???????????????? | | [* # """" # """"" ""??????????????????? | | * # """" # """"" """?"???????????????? | | # """" # ??? ?????????????? | | """"" # """" ###k =| """???????????????? | | """"" # """" ### =| """"" ?? ???????????? | | """ # ###] =| """""? ??? ?????????? | | ########### ? ???????????? | | """"" # ## """ """? ? ??#????????? | | """"" # = """" # u """"" """"" ###????????? | | """ # """" #| "" " """"" ?????u??? | | #[ """%#p% % % % k ????Y??? | | ########## """"!x*u % ???????? | | ##" """%#x! @ u ###????????? | | %+ "= """"[# = ############?##??????????? | | ### """" #R % # #########??##?#????????? | | ### m u # ##?######?#??###?????????? | | ####+####### ##########?#?????????????? | | #### ####### H T######?##????##?????????? | | #### ####### ####?#####?#????????????? | | #### ####### ## ? ????#??????????? | | #+#########u####### ## ? ? ? ? ???????????? | | # ######### #?##### ^ ## ? ?? ??????????????? | | # #########u#?#### # ? ?? ?????????????? | | ######### ###### #? ? ? ? ??????????????? | | ####### # ?? ?????????????? | | ####### + ????????????????????? | | ####### # ????????????????????? | | #######u #?### ? ? ????????????????????? | | ####### ##### ????????????????????????? | | ? ? ######??####????????????????????????? | | ?????? ? ? ????????????????????????????????? | | ? ? ? ????????????????????????????????????? | | #????#???????????????????????????????????????????? | | ????? ???????????????????????????????????????????? | | ?????????????????????????????????????????????????? | | ?????????????????????????????????????????????????? | | ?????????????????????????????????????????????????? | +----------------------------------------------------+ Best States ------------- Heat Dissipation 104 Energy Generation 38 Energy Capacity 325 Matter Stores 300 Matter Capacity 300 Sight Range 17 Robot Scan Range 22 Terrain Scan Range 16 Terrain Scan Density 310 ECM Strength 1 Additional Mass Support 6 Armor Coverage 800 Evasion (%) 70 Targeting Accuracy 8 Recoil Reduction 6 Particle Charging 15 Kinecelleration 40 Offensive Hacking 20 Defensive Hacking 15 Item Schematics ----------------- Adv. Targeting Computer | -8/Recycling | Hacked Power Amplifier | -8/Recycling | Hacked Robot Schematics ------------------ None Fabricated ------------ Nothing Repaired ---------- Imp. Heat Sink | 45% | -10/Materials Studied --------- Hvy. Particle Cannon | -6/Factory | Hacked Alien Tech Used ----------------- None Achievements -------------- Hot Goods Challenges ------------ None RPGLIKE | -11 -10 -10 -8 -8 -6 -6 -5 --------- Run | Yrd Mat Sub Rec Scr Fac DSF Fac Levels Raised 9 | . 1 1 1 1 1 1 3 XP Earned 16881 | 3000 1905 1900 1400 900 1550 2200 4026 XP Spent 15930 | 2990 1475 1535 1500 1150 1700 1590 3990 Upgrades 49 | 11 5 7 2 6 1 4 13 Power Slot 1 | . . . . 1 . . . Propulsion Slot 2 | 1 1 . . . . . . Utility Slot 5 | 2 . 1 1 . 1 . . Weapon Slot 2 | 1 . . . . . . 1 Core Integrity 5 | . . 4 . . . . 1 Heat Dissipation 8 | 2 . . . 5 . 1 . Energy Generation 1 | . . . . . . 1 . Mass Support 1 | . 1 . . . . . . Inventory Capacity 1 | 1 . . . . . . . Sight Range 1 | . . . 1 . . . . Sensor Range 11 | 1 2 2 . . . . 6 Terrain Scan Density 3 | 3 . . . . . . . Ranged Accuracy 4 | . 1 . . . . 2 1 Hack Attack % 2 | . . . . . . . 2 Hack Defense % 1 | . . . . . . . 1 KI Damage % 1 | . . . . . . . 1 Protomatter Created 1110 | . 160 286 135 . . 266 263 Integrity Restored 2607 | . 264 717 405 . . 567 654 Core 2607 | . 264 717 405 . . 567 654 Protomatter Decayed 238 | . 25 82 34 . . 97 . Game ------ Seed CompanionLaserBooster Manual? 0 Play Time 02:25:12 Cumulative 78.6 hours Start 2025.11.18 @ 09:19:25 End 2025.11.18 @ 10:45:53 Sessions 1 Manual Loads 0 Difficulty Rogue Special Mode Winter2019/RPGLIKE Game No. 71 Rogue 71 Adventurer 0 Explorer 0 Win Type - Total 0 Types 0/0/0/0/0/0/0/0/0/0 Lore% 58 Gallery% 38 Achievement% 36 Wizard Run 0 Options --------- Layout 0 ASCII 0 Keyboard 0 Movement Mouse Keybinds 0 Fullscreen 2 Font 24/Smallcaps Map View 76x50 Zoom Use 0% Tactical HUD 1 Map Filters NONE Filters NONE Steam 1 RUN: 30b46f32-f033-4463-b22d-95a68afa8bb1